fUST/lending_fUST_20241225
["ID","MTS","AMOUNT","RATE_DAILY","PERIOD"]
[346585151,1735115361515,-500.0,0.0001095,2]
[346585152,1735115361537,-500.0,0.0001095,2]
[346585153,1735115361559,-501.79047327,0.0001095,2]
[346585154,1735115361582,-501.98295497,0.0001095,2]
[346585155,1735115361604,-500.0,0.0001095,2]
[346585156,1735115361625,-500.0,0.0001095,2]
[346585157,1735115361646,-428.59508887,0.0001095,2]
[346585158,1735115361666,-500.0,0.0001095,2]
[346585159,1735115361687,-502.83494229,0.0001095,2]
[346585160,1735115361708,-501.25840144,0.0001095,2]
[346585161,1735115361728,-501.96938278,0.0001095,2]
[346585162,1735115361751,-582.35,0.0001095,2]
[346585163,1735115361772,-500.0,0.0001095,2]
[346585164,1735115361794,-500.0,0.0001095,2]
[346585165,1735115361815,-500.0,0.0001095,2]
[346585166,1735115361837,-500.91043585,0.0001095,2]
[346585167,1735115361858,-500.0,0.0001095,2]
[346585168,1735115361881,-500.0,0.0001095,2]
[346585169,1735115361902,-501.94438172,0.0001095,2]
[346585170,1735115361924,-500.0,0.0001095,2]
[346585171,1735115361946,-502.6007362,0.0001095,2]
[346585172,1735115361969,-504.00923443,0.0001095,2]
[346585173,1735115361991,-500.0,0.0001095,2]
[346585174,1735115362011,-501.45605575,0.0001095,2]
[346585175,1735115362033,-501.9130706,0.0001095,2]
[346585176,1735115362056,-502.07554,0.0001095,2]
[346585177,1735115362078,-501.55975099,0.0001095,2]
[346585178,1735115362099,-23261.95,0.0001095,2]
[346585179,1735115362122,-500.0,0.0001095,2]
[346585180,1735115362143,-500.0,0.0001095,2]
[346585181,1735115362163,-491.98743606,0.0001095,2]
[346585182,1735115362185,-501.31353054,0.0001095,2]
[346585183,1735115362206,-6540.47,0.0001095,2]
[346585184,1735115362230,-500.0,0.0001095,2]
[346585185,1735115362251,-501.83387537,0.0001095,2]
[346585186,1735115362273,-502.80737215,0.0001095,2]
[346585187,1735115362294,-502.57332247,0.0001095,2]
[346585188,1735115362316,-897.62,0.0001095,2]
[346585189,1735115362337,-502.29813148,0.0001095,2]
[346585190,1735115362358,-500.0,0.0001095,2]
[346585191,1735115362379,-1032.57,0.0001095,2]
[346585192,1735115362400,-500.0,0.0001095,2]
[346585193,1735115362422,-190.28718354,0.0001095,2]
[346585194,1735115362442,-500.0,0.0001095,2]
[346585195,1735115362464,-500.0,0.0001095,2]
[346585196,1735115362486,-500.0,0.0001095,2]
[346585197,1735115362507,-500.0,0.00010951,2]
[346585198,1735115362527,-259.22838164,0.00010951,2]
[346585199,1735115362548,-500.0,0.00010951,2]
[346585200,1735115362569,-500.0,0.00010951,2]
[346585201,1735115362590,-500.0,0.00010951,2]
[346585202,1735115362611,-500.0,0.00010951,2]
[346585203,1735115362632,-500.0,0.00010951,2]
[346585204,1735115362653,-500.0,0.00010951,2]
[346585205,1735115362674,-500.0,0.00010951,2]
[346585206,1735115362694,-500.0,0.00010951,2]
[346585207,1735115362715,-500.0,0.00010951,2]
[346585208,1735115362736,-500.0,0.00010952,2]
[346585209,1735115362759,-500.0,0.00010952,2]
[346585210,1735115362780,-647.22,0.00010952,2]
[346585211,1735115362802,-500.0,0.00010952,2]
[346585212,1735115362825,-500.0,0.00010952,2]
[346585213,1735115362847,-500.0,0.00010952,2]
[346585214,1735115362868,-500.0,0.00010952,2]
[346585215,1735115362890,-500.0,0.00010952,2]
[346585216,1735115362912,-500.0,0.00010952,2]
[346585217,1735115362932,-705.17,0.00010952,2]
[346585218,1735115362954,-548.92238011,0.00010952,2]
[346585219,1735115362976,-500.0,0.00010952,2]
[346585220,1735115362998,-552.7,0.00010952,2]
[346585221,1735115363018,-713.21,0.00010952,2]
[346585222,1735115363040,-523.61,0.00010952,2]
[346585223,1735115363062,-500.0,0.00010952,2]
[346585224,1735115363084,-500.0,0.00010952,2]
[346585225,1735115363106,-500.0,0.00010952,2]
[346585226,1735115363127,-500.0,0.00010952,2]
[346585227,1735115363148,-500.0,0.00010952,2]
[346585228,1735115363169,-500.0,0.00010952,2]
[346585229,1735115363190,-500.0,0.00010952,2]
[346585230,1735115363212,-5536.21,0.00010952,2]
[346585231,1735115363233,-500.0,0.00010952,2]
[346585232,1735115363254,-773.9,0.00010952,2]
[346585233,1735115363275,-500.0,0.00010952,2]
[346585234,1735115363296,-504.22235589,0.00010953,2]
[346585235,1735115363318,-500.0,0.00010953,2]
[346585236,1735115363339,-500.0,0.00010953,2]
[346585237,1735115363360,-500.0,0.00010953,2]
[346585238,1735115363381,-503.54533713,0.00010953,2]
[346585239,1735115363402,-500.0,0.00010953,2]
[346585240,1735115363423,-500.0,0.00010953,2]
[346585241,1735115363443,-500.0,0.00010953,2]
[346585242,1735115363463,-500.0,0.00010953,2]
[346585243,1735115363485,-500.0,0.00010953,2]
[346585244,1735115363507,-500.0,0.00010953,2]
[346585245,1735115363528,-192.63204232,0.00010953,2]
[346585246,1735115363550,-500.0,0.00010953,2]
[346585247,1735115363572,-503.45182854,0.00010953,2]
[346585248,1735115363594,-500.0,0.00010953,2]
[346585249,1735115363616,-500.0,0.00010953,2]
[346585250,1735115363638,-500.0,0.00010953,2]
[346585251,1735115363659,-500.0,0.00010953,2]
[346585252,1735115363681,-502.40851997,0.00010953,2]
[346585253,1735115363703,-500.0,0.00010953,2]
[346585254,1735115363725,-435.16710381,0.00010953,2]
[346585255,1735115363749,-500.0,0.00010953,2]
[346585256,1735115363775,-500.0,0.00010953,2]
[346585257,1735115363799,-500.0,0.00010953,2]
[346585258,1735115363822,-500.0,0.00010953,2]
[346585259,1735115363843,-500.0,0.00010953,2]
[346585260,1735115363865,-500.0,0.00010953,2]
[346585261,1735115363885,-500.0,0.00010953,2]
[346585262,1735115363907,-790.87,0.00010953,2]
[346585263,1735115363928,-500.0,0.00010953,2]
[346585264,1735115363950,-500.0,0.00010953,2]
[346585265,1735115363972,-500.0,0.00010953,2]
[346585266,1735115363994,-500.0,0.00010953,2]
[346585267,1735115364015,-431.63173573,0.00010953,2]
[346585268,1735115364036,-500.0,0.00010953,2]
[346585269,1735115364057,-158.44,0.00010953,2]
[346585270,1735115364080,-291.22,0.00010953,2]
[346585271,1735115364102,-500.0,0.00010953,2]
[346585272,1735115364123,-500.0,0.00010953,2]
[346585273,1735115364144,-501.37884012,0.00010953,2]
[346585274,1735115364166,-500.0,0.00010953,2]
[346585275,1735115364188,-500.0,0.00010953,2]
[346585276,1735115364209,-978.35,0.00010953,2]
[346585277,1735115364232,-504.37309669,0.00010953,2]
[346585278,1735115364254,-500.0,0.00010953,2]
[346585279,1735115364275,-500.0,0.00010953,2]
[346585280,1735115364297,-228.38,0.00010955,2]
[346585281,1735115364321,-500.0,0.00010955,2]
[346585282,1735115364342,-500.0,0.00010955,2]
[346585283,1735115364364,-500.0,0.00010955,2]
[346585284,1735115364388,-500.0,0.00010955,2]
[346585285,1735115364411,-500.0,0.00010955,2]
[346585286,1735115364434,-168.58341398,0.00011125,2]
[346585287,1735115364457,-500.0,0.00011222,2]
[346585288,1735115364482,-394.62185765,0.00011222,2]
[346585289,1735115364505,-168.0,0.00011223,2]
[346585290,1735115364528,-1731.49,0.00011223,2]
[346585291,1735115364549,-500.0,0.00011223,2]
[346585292,1735115364572,-999.33,0.00011223,2]
[346585293,1735115364594,-975.21,0.00011223,2]
[346585294,1735115364615,-570.18,0.00011223,2]
[346585295,1735115364638,-1153.64,0.00011223,2]
[346585296,1735115364660,-500.0,0.00011223,2]
[346585297,1735115364681,-612.78,0.00011223,2]
[346585298,1735115364702,-500.0,0.00011223,2]
[346585299,1735115364723,-500.0,0.00011223,2]
[346585300,1735115364746,-500.0,0.00011223,2]
[346585301,1735115364770,-500.0,0.00011223,2]
[346585302,1735115364791,-595.66,0.00011223,2]
[346585303,1735115364814,-500.0,0.00011223,2]
[346585304,1735115364838,-500.0,0.00011223,2]
[346585305,1735115364860,-790.17,0.00011223,2]
[346585306,1735115364881,-1579.47,0.00011223,2]
[346585307,1735115364902,-328.63285566,0.00011223,2]
[346585308,1735115364925,-637.72,0.00011223,2]
[346585309,1735115364946,-500.0,0.00011223,2]
[346585310,1735115364967,-500.0,0.00011223,2]
[346585311,1735115364989,-500.0,0.00011223,2]
[346585312,1735115365012,-500.0,0.00011223,2]
[346585313,1735115365034,-500.0,0.00011223,2]
[346585314,1735115365057,-500.0,0.00011223,2]
[346585315,1735115365079,-855.76,0.00011223,2]
[346585316,1735115365102,-500.0,0.00011223,2]
[346585317,1735115365124,-1175.6,0.00011223,2]
[346585318,1735115365146,-1088.76,0.00011223,2]
[346585319,1735115365166,-500.0,0.00011223,2]
[346585320,1735115365188,-500.0,0.00011223,2]
[346585321,1735115365209,-890.77,0.00011223,2]
[346585322,1735115365231,-6120.45,0.00011223,2]
[346585323,1735115365252,-500.0,0.00011223,2]
[346585324,1735115365451,-2357.41,0.00011223,2]
[346585325,1735115365476,-500.0,0.00011223,2]
[346585326,1735115365499,-500.0,0.00011223,2]
[346585327,1735115365521,-500.0,0.00011223,2]
[346585328,1735115365543,-500.0,0.00011223,2]
[346585329,1735115365564,-500.0,0.00011223,2]
[346585330,1735115365587,-500.0,0.00011223,2]
[346585331,1735115365609,-500.0,0.00011224,2]
[346585332,1735115365630,-500.0,0.00011224,2]
[346585333,1735115365653,-644.39584174,0.00011224,2]
[346585334,1735115365674,-500.0,0.00011224,2]
[346585335,1735115365695,-639.97910509,0.00011224,2]
[346585336,1735115365717,-500.0,0.00011224,2]
[346585337,1735115365738,-500.0,0.00011224,4]
[346585338,1735115365764,-500.0,0.00011224,2]
[346585339,1735115365786,-500.0,0.00011224,2]
[346585340,1735115365809,-500.0,0.00011224,2]
[346585341,1735115365832,-807.06,0.00011224,2]
[346585342,1735115365853,-500.0,0.00011224,2]
[346585343,1735115365875,-557.73,0.00011224,2]
[346585344,1735115365897,-501.2667194,0.00011224,2]
[346585345,1735115365919,-500.0,0.00011224,2]
[346585346,1735115365941,-500.0,0.00011224,2]
[346585347,1735115365963,-542.65,0.00011224,2]
[346585348,1735115365984,-500.0,0.00011224,2]
[346585349,1735115366006,-500.0,0.00011224,2]
[346585350,1735115366027,-500.0,0.00011224,2]
[346585351,1735115366049,-500.0,0.00011224,2]
[346585352,1735115366072,-500.0,0.00011224,2]
[346585353,1735115366093,-417.65862824,0.00011224,2]
[346585354,1735115366114,-500.0,0.00011224,2]
[346585355,1735115366135,-582.35,0.00011224,2]
[346585356,1735115366156,-315.88,0.00011224,2]
[346585357,1735115366177,-500.0,0.00011224,2]
[346585358,1735115366199,-500.0,0.00011224,2]
[346585359,1735115366219,-500.0,0.00011224,2]
[346585360,1735115366241,-14982.29119572,0.00011224,2]
[346585384,1735115435202,-500.0,0.00010948,2]
[346585385,1735115435212,-1122.09,0.00010948,2]
[346585386,1735115435222,-300.0,0.00010948,2]
[346585387,1735115435231,-500.0,0.00010948,2]
[346585388,1735115435241,-300.0,0.00010948,2]
[346585389,1735115435250,-585.62,0.00010948,2]
[346585390,1735115435259,-500.0,0.00010948,2]
[346585391,1735115435268,-500.0,0.00010949,2]
[346585392,1735115435278,-500.0,0.00010949,2]
[346585393,1735115435287,-570.91,0.00010949,2]
[346585394,1735115435297,-500.0,0.00010949,2]
[346585395,1735115435306,-500.0,0.00010949,2]
[346585396,1735115435316,-1798.89,0.00010949,2]
[346585397,1735115435325,-500.0,0.00010949,2]
[346585398,1735115435334,-1023.2,0.00010949,2]
[346585399,1735115435343,-325.63187792,0.00010949,2]
[346585400,1735115435367,-174.36812208,0.00010949,2]
[346585401,1735115435377,-500.0,0.00010949,2]
[346585402,1735115435387,-16.62227953,0.00010949,2]
[346585403,1735115435414,-575.63772047,0.00010949,2]
[346585404,1735115435423,-500.0,0.00010949,2]
[346585405,1735115435432,-500.0,0.0001095,2]
[346585406,1735115435443,-500.0,0.0001095,2]
[346585407,1735115435452,-668.1,0.0001095,2]
[346585408,1735115435461,-500.0,0.0001095,2]
[346585409,1735115435470,-500.0,0.0001095,2]
[346585410,1735115435480,-500.0,0.0001095,2]
[346585411,1735115435489,-500.0,0.0001095,2]
[346585412,1735115435499,-500.0,0.00010952,2]
[346585413,1735115435508,-757.92,0.00010952,2]
[346585414,1735115435517,-500.0,0.00010953,2]
[346585415,1735115435526,-500.0,0.00011222,2]
[346585416,1735115435535,-1122.09,0.00011222,2]
[346585417,1735115435545,-500.0,0.00011222,2]
[346585418,1735115435554,-585.62,0.00011222,2]
[346585419,1735115435563,-500.0,0.00011222,2]
[346585420,1735115435572,-505.25453754,0.00011223,2]
[346585421,1735115435582,-500.0,0.00011223,2]
[346585422,1735115435591,-570.91,0.00011223,2]
[346585423,1735115435600,-500.0,0.00011223,2]
[346585424,1735115435610,-500.0,0.00011223,2]
[346585425,1735115435619,-1798.89,0.00011223,2]
[346585426,1735115435630,-1023.2,0.00011223,2]
[346585427,1735115435639,-500.0,0.00011223,2]
[346585428,1735115435648,-500.0,0.00011223,2]
[346585429,1735115435657,-500.0,0.00011223,2]
[346585430,1735115435667,-592.26,0.00011223,2]
[346585431,1735115435676,-500.0,0.00011223,2]
[346585432,1735115435685,-500.0,0.00011223,2]
[346585433,1735115435695,-8279.65880428,0.00011224,2]
[346585434,1735115435704,-228.93834509,0.00011224,2]
[346585435,1735115435713,-6540.47,0.00011224,2]
[346585436,1735115435723,-897.62,0.00011224,2]
[346585437,1735115435732,-1032.57,0.00011224,2]
[346585438,1735115435741,-503.04,0.00011224,2]
[346585439,1735115435750,-500.0,0.00011224,2]
[346585440,1735115435759,-500.0,0.00011224,2]
[346585441,1735115435770,-668.1,0.00011224,2]
[346585442,1735115435780,-500.0,0.00011224,2]
[346585443,1735115435789,-500.0,0.00011224,2]
[346585444,1735115435798,-603.77,0.00011225,2]
[346585445,1735115435808,-500.0,0.00011225,2]
[346585446,1735115435819,-500.0,0.00011225,2]
[346585447,1735115435828,-500.0,0.00011225,2]
[346585448,1735115435838,-500.0,0.00011225,2]
[346585449,1735115435847,-500.0,0.00011225,2]
[346585450,1735115435857,-631.0059852,0.00011225,2]
[346585451,1735115435867,-406.7721715,0.00011226,2]
[346585452,1735115435877,-500.0,0.00011226,2]
[346585453,1735115435886,-500.0,0.00011226,2]
[346585454,1735115435895,-500.0,0.00011226,2]
[346585455,1735115435905,-705.17,0.00011226,2]
[346585456,1735115435914,-552.7,0.00011226,2]
[346585457,1735115435924,-713.21,0.00011226,2]
[346585458,1735115435933,-523.61,0.00011226,2]
[346585459,1735115435944,-500.0,0.00011226,2]
[346585460,1735115435953,-500.0,0.00011226,2]
[346585461,1735115435963,-500.0,0.00011226,2]
[346585462,1735115435972,-500.0,0.00011226,2]
[346585463,1735115435981,-500.0,0.00011226,2]
[346585464,1735115435991,-500.0,0.00011226,2]
[346585465,1735115436000,-500.0,0.00011226,2]
[346585466,1735115436009,-5536.21,0.00011226,2]
[346585467,1735115436019,-500.0,0.00011226,2]
[346585468,1735115436028,-773.9,0.00011226,2]
[346585469,1735115436037,-500.0,0.00011226,2]
[346585470,1735115436046,-500.0,0.00011226,2]
[346585471,1735115436055,-757.92,0.00011226,2]
[346585472,1735115436065,-500.0,0.00011227,2]
[346585473,1735115436075,-500.66449933,0.00011227,2]
[346585474,1735115436084,-500.0,0.00011227,2]
[346585475,1735115436094,-481.90381995,0.00011227,2]
[346585476,1735115436103,-500.0,0.00011227,2]
[346585477,1735115436112,-500.0,0.00011227,2]
[346585478,1735115436121,-500.0,0.00011227,2]
[346585479,1735115436132,-500.0,0.00011227,2]
[346585480,1735115436141,-500.0,0.00011227,2]
[346585481,1735115436150,-500.0,0.00011227,2]
[346585482,1735115436160,-500.0,0.00011227,2]
[346585483,1735115436169,-500.0,0.00011227,2]
[346585484,1735115436178,-500.0,0.00011227,2]
[346585485,1735115436187,-978.35,0.00011227,2]
[346585486,1735115436196,-500.0,0.00011227,2]
[346585487,1735115436205,-500.0,0.00011227,2]
[346585488,1735115436215,-168.58341398,0.000114,2]
[346585489,1735115436224,-399.39086518,0.00011495,2]
[346585490,1735115436233,-247.11853059,0.00011495,2]
[346585491,1735115436242,-500.0,0.00011496,2]
[346585492,1735115436252,-472.23279199,0.00011496,2]
[346585493,1735115436261,-1122.09,0.00011496,2]
[346585494,1735115436270,-500.0,0.00011496,2]
[346585495,1735115436279,-585.62,0.00011496,2]
[346585496,1735115436288,-500.0,0.00011496,2]
[346585497,1735115436297,-168.0,0.00011497,2]
[346585498,1735115436306,-975.21,0.00011497,2]
[346585499,1735115436315,-612.78,0.00011497,2]
[346585500,1735115436324,-500.0,0.00011497,2]
[346585501,1735115436333,-500.0,0.00011497,2]
[346585502,1735115436342,-500.0,0.00011497,2]
[346585503,1735115436351,-500.0,0.00011497,2]
[346585504,1735115436361,-790.17,0.00011497,2]
[346585505,1735115436371,-1579.47,0.00011497,2]
[346585506,1735115436384,-637.72,0.00011497,2]
[346585507,1735115436393,-500.0,0.00011497,2]
[346585508,1735115436402,-500.0,0.00011497,2]
[346585509,1735115436411,-500.0,0.00011497,2]
[346585510,1735115436420,-500.0,0.00011497,2]
[346585511,1735115436431,-855.76,0.00011497,2]
[346585512,1735115436441,-500.0,0.00011497,2]
[346585513,1735115436450,-1175.6,0.00011497,2]
[346585514,1735115436460,-1088.76,0.00011497,2]
[346585515,1735115436470,-500.0,0.00011497,2]
[346585516,1735115436479,-890.77,0.00011497,2]
[346585517,1735115436489,-6120.45,0.00011497,2]
[346585518,1735115436498,-500.0,0.00011497,2]
[346585519,1735115436508,-2357.41,0.00011497,2]
[346585520,1735115436517,-500.0,0.00011497,2]
[346585521,1735115436526,-500.0,0.00011497,2]
[346585522,1735115436536,-500.0,0.00011497,2]
[346585523,1735115436546,-500.0,0.00011497,2]
[346585524,1735115436555,-500.0,0.00011497,2]
[346585525,1735115436564,-500.0,0.00011497,2]
[346585526,1735115436574,-500.0,0.00011497,2]
[346585527,1735115436583,-570.91,0.00011497,2]
[346585528,1735115436593,-500.0,0.00011497,2]
[346585529,1735115436602,-1798.89,0.00011497,2]
[346585530,1735115436612,-1023.2,0.00011497,2]
[346585531,1735115436621,-500.0,0.00011497,2]
[346585532,1735115436633,-500.0,0.00011497,2]
[346585533,1735115436643,-592.26,0.00011497,2]
[346585534,1735115436654,-500.0,0.00011497,2]
[346585535,1735115436663,-500.0,0.00011497,2]
[346585536,1735115436672,-500.0,0.00011498,2]
[346585537,1735115436681,-500.0,0.00011498,2]
[346585538,1735115436690,-500.0,0.00011498,2]
[346585539,1735115436699,-500.0,0.00011498,2]
[346585540,1735115436709,-224.29700883,0.00011498,4]
[346585541,1735115436718,-500.0,0.00011498,2]
[346585542,1735115436727,-500.0,0.00011498,2]
[346585543,1735115436736,-500.0,0.00011498,2]
[346585544,1735115436746,-807.06,0.00011498,2]
[346585545,1735115436755,-500.0,0.00011498,2]
[346585546,1735115436764,-557.73,0.00011498,2]
[346585547,1735115436777,-500.0,0.00011498,2]
[346585548,1735115436786,-175.43284209,0.00011498,2]
[346585549,1735115436795,-500.0,0.00011498,2]
[346585550,1735115436805,-582.35,0.00011498,2]
[346585551,1735115436815,-500.0,0.00011498,2]
[346585552,1735115436824,-500.0,0.00011498,2]
[346585553,1735115436834,-500.0,0.00011498,2]
[346585554,1735115436843,-23261.95,0.00011498,2]
[346585555,1735115436853,-6540.47,0.00011498,2]
[346585556,1735115436863,-897.62,0.00011498,2]
[346585557,1735115436873,-1032.57,0.00011498,2]
[346585558,1735115436882,-500.0,0.00011498,2]
[346585559,1735115436891,-668.1,0.00011498,2]
[346585560,1735115437025,-500.0,0.00011498,2]
[346585561,1735115437034,-500.0,0.00011498,2]
[346585562,1735115437043,-500.0,0.00011499,2]
[346585563,1735115437053,-500.0,0.00011499,2]
[346585564,1735115437062,-500.0,0.00011499,2]
[346585565,1735115437071,-500.0,0.00011499,2]
[346585566,1735115437080,-468.34824623,0.00011499,2]
[346585567,1735115437089,-500.0,0.000115,2]
[346585568,1735115437098,-500.0,0.000115,2]
[346585569,1735115437108,-500.0,0.000115,2]
[346585570,1735115437117,-705.17,0.000115,2]
[346585571,1735115437126,-552.7,0.000115,2]
[346585572,1735115437135,-713.21,0.000115,2]
[346585573,1735115437144,-523.61,0.000115,2]
[346585574,1735115437153,-500.0,0.000115,2]
[346585575,1735115437162,-500.0,0.000115,2]
[346585576,1735115437172,-500.0,0.000115,2]
[346585577,1735115437181,-500.0,0.000115,2]
[346585578,1735115437190,-500.0,0.000115,2]
[346585579,1735115437199,-500.0,0.000115,2]
[346585580,1735115437209,-500.0,0.000115,2]
[346585581,1735115437218,-2885.7894572,0.000115,2]
[346585583,1735115438304,-140.01679017,0.00010949,2]
[346585585,1735115440208,-500.0,0.00010948,2]
[346585586,1735115440218,-359.98320983,0.00010949,2]
[346585587,1735115440228,-500.0,0.00010949,2]
[346585589,1735115440237,-500.0,0.00010949,2]
[346585590,1735115440247,-500.0,0.0001095,2]
[346585592,1735115440257,-500.0,0.00011222,2]
[346585593,1735115440266,-500.0,0.00011223,2]
[346585594,1735115440275,-500.0,0.00011223,2]
[346585595,1735115440285,-500.0,0.00011497,2]
[346585596,1735115440294,-2650.4205428,0.000115,2]
[346585597,1735115440303,-500.0,0.000115,2]
[346585598,1735115440312,-773.9,0.000115,2]
[346585600,1735115440321,-500.0,0.000115,2]
[346585601,1735115440330,-500.0,0.000115,2]
[346585603,1735115440339,-757.92,0.000115,2]
[346585604,1735115440349,-481.61157779,0.00011501,2]
[346585605,1735115440358,-500.0,0.00011501,2]
[346585606,1735115440367,-500.0,0.00011501,2]
[346585607,1735115440378,-500.0,0.00011501,2]
[346585608,1735115440387,-500.0,0.00011501,2]
[346585609,1735115440397,-500.0,0.00011501,2]
[346585610,1735115440406,-500.0,0.00011501,2]
[346585611,1735115440415,-500.0,0.00011501,2]
[346585612,1735115440428,-500.0,0.00011501,2]
[346585613,1735115440441,-500.0,0.00011501,2]
[346585614,1735115440453,-978.35,0.00011501,2]
[346585615,1735115440465,-500.0,0.00011501,2]
[346585616,1735115440478,-500.0,0.00011501,2]
[346585617,1735115440489,-500.0,0.00011625,2]
[346585618,1735115440500,-168.58341398,0.00011674,2]
[346585619,1735115440511,-500.0,0.00011741,2]
[346585620,1735115440524,-500.0,0.00011743,2]
[346585621,1735115440536,-500.52430171,0.00011748,2]
[346585622,1735115440546,-500.0,0.0001177,2]
[346585623,1735115440558,-1122.09,0.0001177,2]
[346585624,1735115440569,-464.07160658,0.0001177,2]
[346585625,1735115440580,-585.62,0.0001177,2]
[346585626,1735115440592,-500.0,0.0001177,2]
[346585627,1735115440603,-168.0,0.00011771,2]
[346585628,1735115440614,-612.78,0.00011771,2]
[346585629,1735115440628,-500.0,0.00011771,2]
[346585630,1735115440640,-500.0,0.00011771,2]
[346585631,1735115440651,-500.0,0.00011771,2]
[346585632,1735115440662,-500.0,0.00011771,2]
[346585633,1735115440672,-790.17,0.00011771,2]
[346585634,1735115440683,-1579.47,0.00011771,2]
[346585635,1735115440695,-637.72,0.00011771,2]
[346585636,1735115440707,-500.0,0.00011771,2]
[346585637,1735115440719,-500.0,0.00011771,2]
[346585638,1735115440731,-500.0,0.00011771,2]
[346585639,1735115440746,-500.0,0.00011771,2]
[346585640,1735115440760,-855.76,0.00011771,2]
[346585641,1735115440778,-594.4565078,0.00011771,2]
[346585642,1735115440789,-1175.6,0.00011771,2]
[346585643,1735115440799,-1088.76,0.00011771,2]
[346585644,1735115440809,-500.0,0.00011771,2]
[346585645,1735115440820,-890.77,0.00011771,2]
[346585646,1735115440831,-6120.45,0.00011771,2]
[346585647,1735115440845,-600.68017488,0.00011771,2]
[346585648,1735115440856,-2357.41,0.00011771,2]
[346585649,1735115440867,-500.0,0.00011771,2]
[346585650,1735115440881,-500.0,0.00011771,2]
[346585651,1735115440892,-500.0,0.00011771,2]
[346585652,1735115440903,-500.0,0.00011771,2]
[346585653,1735115440915,-500.0,0.00011771,2]
[346585654,1735115440927,-500.0,0.00011771,2]
[346585655,1735115440939,-500.0,0.00011771,2]
[346585656,1735115440951,-570.91,0.00011771,2]
[346585657,1735115440964,-500.0,0.00011771,2]
[346585658,1735115440974,-1798.89,0.00011771,2]
[346585659,1735115440984,-1023.2,0.00011771,2]
[346585660,1735115440994,-500.0,0.00011771,2]
[346585661,1735115441004,-500.0,0.00011771,2]
[346585662,1735115441014,-592.26,0.00011771,2]
[346585663,1735115441025,-500.0,0.00011771,2]
[346585664,1735115441036,-500.0,0.00011771,2]
[346585665,1735115441047,-500.0,0.00011772,2]
[346585666,1735115441060,-500.0,0.00011772,2]
[346585667,1735115441071,-500.0,0.00011772,2]
[346585668,1735115441082,-500.0,0.00011772,2]
[346585669,1735115441092,-378.0311076,0.00011772,2]
[346585670,1735115441101,-500.0,0.00011772,2]
[346585671,1735115441112,-500.0,0.00011772,2]
[346585672,1735115441122,-807.06,0.00011772,2]
[346585673,1735115441134,-500.0,0.00011772,2]
[346585674,1735115441145,-557.73,0.00011772,2]
[346585675,1735115441156,-500.0,0.00011772,2]
[346585676,1735115441166,-500.0,0.00011772,2]
[346585677,1735115441176,-582.35,0.00011772,2]
[346585678,1735115441186,-500.0,0.00011772,2]
[346585679,1735115441196,-500.0,0.00011772,2]